[Event "Titled Tuesday Blitz June 27 Early 2023"]
[White "Sowul, Bartosz"]
[Black "Vakhlamov, Igor L."]
[WhiteFideId "1137590"]
[BlackFideId "24126748"]
[WhiteElo "2572"]
[BlackElo "2802"]
[Result "1-0"]
[Round "2"]
[TimeControl "180+2"]
[Date "2023.06.27"]
[WhiteClock "0:00:27"]
[BlackClock "0:00:00"]
[Board "69"]

1. e4 {[%clk 0:03:00]}  c5 {[%clk 0:02:59]} 2. Nc3 {[%clk 0:03:01]}  e6 {[%clk 0:03:00]} 3. Nf3 {[%clk 0:03:01]}  Nc6 {[%clk 0:02:58]} 4. Bb5 {[%clk 0:03:00]}  Nge7 {[%clk 0:02:57]} 5. d4 {[%clk 0:02:59]}  cxd4 {[%clk 0:02:55]} 6. Nxd4 {[%clk 0:03:00]}  a6 {[%clk 0:02:55]} 7. Be2 {[%clk 0:02:59]}  Nxd4 {[%clk 0:02:54]} 8. Qxd4 {[%clk 0:02:59]}  Nc6 {[%clk 0:02:54]} 9. Qd3 {[%clk 0:02:59]}  b5 {[%clk 0:02:50]} 10. O-O {[%clk 0:02:52]}  Bb7 {[%clk 0:02:51]} 11. Bf4 {[%clk 0:02:47]}  d6 {[%clk 0:02:20]} 12. Rfd1 {[%clk 0:02:42]}  Ne5 {[%clk 0:02:16]} 13. Qg3 {[%clk 0:02:33]}  Qc7 {[%clk 0:02:15]} 14. a3 {[%clk 0:02:08]}  Rd8 {[%clk 0:02:05]} 15. Be3 {[%clk 0:02:03]}  Ng6 {[%clk 0:01:16]} 16. h4 {[%clk 0:01:58]}  h5 {[%clk 0:01:11]} 17. Bg5 {[%clk 0:01:42]}  Be7 {[%clk 0:01:12]} 18. Bxe7 {[%clk 0:01:36]}  Qxe7 {[%clk 0:01:13]} 19. Rd3 {[%clk 0:01:11]}  Qxh4 {[%clk 0:01:12]} 20. Rxd6 {[%clk 0:01:02]}  Qxg3 {[%clk 0:01:09]} 21. Rxd8+ {[%clk 0:01:02]}  Kxd8 {[%clk 0:01:10]} 22. fxg3 {[%clk 0:01:02]}  h4 {[%clk 0:01:05]} 23. g4 {[%clk 0:00:58]}  Ne5 {[%clk 0:01:02]} 24. a4 {[%clk 0:00:57]}  b4 {[%clk 0:00:58]} 25. Na2 {[%clk 0:00:56]}  a5 {[%clk 0:00:59]} 26. c3 {[%clk 0:00:57]}  bxc3 {[%clk 0:00:45]} 27. Nxc3 {[%clk 0:00:58]}  Ke7 {[%clk 0:00:41]} 28. Rd1 {[%clk 0:00:54]}  Bc6 {[%clk 0:00:37]} 29. Kf2 {[%clk 0:00:53]}  Rb8 {[%clk 0:00:36]} 30. Rd2 {[%clk 0:00:51]}  Rb4 {[%clk 0:00:36]} 31. Bb5 {[%clk 0:00:48]}  Bxe4 {[%clk 0:00:35]} 32. g5 {[%clk 0:00:45]}  Ng4+ {[%clk 0:00:32]} 33. Kg1 {[%clk 0:00:43]}  Bd5 {[%clk 0:00:22]} 34. Nxd5+ {[%clk 0:00:42]}  exd5 {[%clk 0:00:23]} 35. Rxd5 {[%clk 0:00:42]}  Rxb2 {[%clk 0:00:24]} 36. Rd7+ {[%clk 0:00:41]}  Ke6 {[%clk 0:00:23]} 37. Rd4 {[%clk 0:00:39]}  Rb1+ {[%clk 0:00:21]} 38. Bf1 {[%clk 0:00:39]}  Ke5 {[%clk 0:00:20]} 39. Rxg4 {[%clk 0:00:39]}  Kf5 {[%clk 0:00:19]} 40. Rxh4 {[%clk 0:00:37]}  Kxg5 {[%clk 0:00:20]} 41. Rc4 {[%clk 0:00:37]}  f5 {[%clk 0:00:19]} 42. Kf2 {[%clk 0:00:37]}  Ra1 {[%clk 0:00:17]} 43. Be2 {[%clk 0:00:36]}  Ra2 {[%clk 0:00:17]} 44. Kf3 {[%clk 0:00:36]}  Ra3+ {[%clk 0:00:17]} 45. Kf2 {[%clk 0:00:36]}  Ra2 {[%clk 0:00:17]} 46. Rd4 {[%clk 0:00:36]}  g6 {[%clk 0:00:15]} 47. Rc4 {[%clk 0:00:36]}  Kf6 {[%clk 0:00:12]} 48. g3 {[%clk 0:00:35]}  Kg5 {[%clk 0:00:10]} 49. Kf3 {[%clk 0:00:35]}  Ra3+ {[%clk 0:00:10]} 50. Kf2 {[%clk 0:00:36]}  Ra2 {[%clk 0:00:11]} 51. Ke3 {[%clk 0:00:35]}  Kf6 {[%clk 0:00:09]} 52. Bf3 {[%clk 0:00:35]}  Kg5 {[%clk 0:00:08]} 53. Bd1 {[%clk 0:00:33]}  Ra3+ {[%clk 0:00:08]} 54. Kf2 {[%clk 0:00:33]}  Ra2+ {[%clk 0:00:09]} 55. Kg1 {[%clk 0:00:33]}  Kf6 {[%clk 0:00:09]} 56. Rc5 {[%clk 0:00:32]}  Ra1 {[%clk 0:00:08]} 57. Rd5 {[%clk 0:00:32]}  Ke6 {[%clk 0:00:08]} 58. Rd2 {[%clk 0:00:32]}  Ke5 {[%clk 0:00:07]} 59. Kf2 {[%clk 0:00:32]}  Ra3 {[%clk 0:00:08]} 60. Rb2 {[%clk 0:00:31]}  Kf6 {[%clk 0:00:07]} 61. Rb6+ {[%clk 0:00:31]}  Kg5 {[%clk 0:00:06]} 62. Rb5 {[%clk 0:00:32]}  Ra2+ {[%clk 0:00:07]} 63. Ke3 {[%clk 0:00:32]}  Ra3+ {[%clk 0:00:07]} 64. Bb3 {[%clk 0:00:31]}  Kg4 {[%clk 0:00:06]} 65. Kf2 {[%clk 0:00:31]}  Kh3 {[%clk 0:00:06]} 66. Rb6 {[%clk 0:00:30]}  Kh2 {[%clk 0:00:02]} 67. Rxg6 {[%clk 0:00:29]}  Kh3 {[%clk 0:00:00]} 68. Bd1 {[%clk 0:00:27]} 1-0


[Site "https://www.chess.com"]

[Event "Titled Tuesday Blitz June 27 Early 2023"]
[White "Avinash Ramesh"]
[Black "profedechess93"]
[WhiteFideId "45018340"]
[WhiteElo "2800"]
[BlackElo "2572"]
[Result "1-0"]
[Round "2"]
[TimeControl "180+2"]
[Date "2023.06.27"]
[WhiteClock "0:01:22"]
[BlackClock "0:00:01"]
[Board "70"]

1. d4 {[%clk 0:03:00]}  d5 {[%clk 0:02:59]} 2. c4 {[%clk 0:03:01]}  c6 {[%clk 0:02:59]} 3. Nf3 {[%clk 0:03:01]}  Nf6 {[%clk 0:02:57]} 4. g3 {[%clk 0:03:02]}  g6 {[%clk 0:02:55]} 5. Bg2 {[%clk 0:03:03]}  Bg7 {[%clk 0:02:55]} 6. O-O {[%clk 0:03:03]}  O-O {[%clk 0:02:56]} 7. cxd5 {[%clk 0:03:04]}  cxd5 {[%clk 0:02:56]} 8. Ne5 {[%clk 0:03:05]}  Nc6 {[%clk 0:02:54]} 9. Bf4 {[%clk 0:03:06]}  Bf5 {[%clk 0:02:52]} 10. Nxc6 {[%clk 0:03:03]}  bxc6 {[%clk 0:02:52]} 11. Be5 {[%clk 0:03:04]}  Qb6 {[%clk 0:02:50]} 12. b3 {[%clk 0:02:41]}  Ne4 {[%clk 0:02:44]} 13. Bxg7 {[%clk 0:02:41]}  Kxg7 {[%clk 0:02:44]} 14. e3 {[%clk 0:02:38]}  a5 {[%clk 0:02:32]} 15. Bxe4 {[%clk 0:02:31]}  dxe4 {[%clk 0:02:01]} 16. Nc3 {[%clk 0:02:31]}  h5 {[%clk 0:01:48]} 17. f4 {[%clk 0:02:27]}  Rad8 {[%clk 0:01:24]} 18. Na4 {[%clk 0:02:26]}  Qc7 {[%clk 0:01:21]} 19. Rc1 {[%clk 0:02:25]}  Bh3 {[%clk 0:01:04]} 20. Rf2 {[%clk 0:02:24]}  Rd6 {[%clk 0:01:01]} 21. Rfc2 {[%clk 0:02:24]}  h4 {[%clk 0:00:57]} 22. Qe1 {[%clk 0:02:24]}  hxg3 {[%clk 0:00:48]} 23. Qxg3 {[%clk 0:02:24]}  Bf5 {[%clk 0:00:42]} 24. Rc5 {[%clk 0:02:22]}  e6 {[%clk 0:00:38]} 25. Nb2 {[%clk 0:02:17]}  Rh8 {[%clk 0:00:36]} 26. Nc4 {[%clk 0:02:16]}  Rh3 {[%clk 0:00:34]} 27. Qf2 {[%clk 0:02:09]}  Rd8 {[%clk 0:00:33]} 28. Ne5 {[%clk 0:02:08]}  Rdh8 {[%clk 0:00:32]} 29. Rxc6 {[%clk 0:02:05]}  Qd8 {[%clk 0:00:24]} 30. Rc7 {[%clk 0:02:00]}  Rxh2 {[%clk 0:00:22]} 31. Rxf7+ {[%clk 0:01:58]}  Kg8 {[%clk 0:00:22]} 32. Qxh2 {[%clk 0:01:56]}  Rxh2 {[%clk 0:00:22]} 33. Kxh2 {[%clk 0:01:57]}  Qh4+ {[%clk 0:00:20]} 34. Kg1 {[%clk 0:01:36]}  Qg3+ {[%clk 0:00:08]} 35. Kf1 {[%clk 0:01:36]}  Bh3+ {[%clk 0:00:09]} 36. Ke2 {[%clk 0:01:29]}  Qg2+ {[%clk 0:00:08]} 37. Ke1 {[%clk 0:01:26]}  Qg1+ {[%clk 0:00:08]} 38. Kd2 {[%clk 0:01:25]}  Qf2+ {[%clk 0:00:08]} 39. Kc3 {[%clk 0:01:24]}  Qxe3+ {[%clk 0:00:08]} 40. Kb2 {[%clk 0:01:24]}  Qd2+ {[%clk 0:00:01]} 41. Kb1 {[%clk 0:01:22]} 1-0


[Site "https://www.chess.com"]

[Event "Titled Tuesday Blitz June 27 Early 2023"]
[White "Ozates, Tuna"]
[Black "Harshavardhan G B"]
[WhiteFideId "6354521"]
[BlackFideId "25059009"]
[WhiteElo "2569"]
[BlackElo "2786"]
[Result "0-1"]
[Round "2"]
[TimeControl "180+2"]
[Date "2023.06.27"]
[WhiteClock "0:00:05"]
[BlackClock "0:00:30"]
[Board "73"]

1. e4 {[%clk 0:03:00]}  e6 {[%clk 0:02:58]} 2. d4 {[%clk 0:03:00]}  d5 {[%clk 0:02:58]} 3. exd5 {[%clk 0:02:59]}  exd5 {[%clk 0:02:58]} 4. Bd3 {[%clk 0:03:00]}  Bd6 {[%clk 0:02:58]} 5. Qf3 {[%clk 0:02:59]}  Ne7 {[%clk 0:02:54]} 6. Bf4 {[%clk 0:02:58]}  Nbc6 {[%clk 0:02:49]} 7. c3 {[%clk 0:02:56]}  O-O {[%clk 0:02:37]} 8. Ne2 {[%clk 0:02:56]}  Re8 {[%clk 0:02:36]} 9. O-O {[%clk 0:02:52]}  Bf5 {[%clk 0:02:25]} 10. Bxd6 {[%clk 0:02:10]}  Qxd6 {[%clk 0:02:21]} 11. Ng3 {[%clk 0:01:48]}  Bxd3 {[%clk 0:02:19]} 12. Qxd3 {[%clk 0:01:49]}  Ng6 {[%clk 0:02:18]} 13. Na3 {[%clk 0:01:48]}  a6 {[%clk 0:02:16]} 14. Rfe1 {[%clk 0:01:48]}  h6 {[%clk 0:02:14]} 15. Nc2 {[%clk 0:01:48]}  Nce7 {[%clk 0:02:07]} 16. Ne3 {[%clk 0:01:16]}  Nf4 {[%clk 0:02:05]} 17. Qd2 {[%clk 0:01:16]}  Neg6 {[%clk 0:02:05]} 18. Nef5 {[%clk 0:01:15]}  Qf6 {[%clk 0:02:00]} 19. Rxe8+ {[%clk 0:01:15]}  Rxe8 {[%clk 0:01:59]} 20. Re1 {[%clk 0:01:16]}  Re6 {[%clk 0:01:54]} 21. Re3 {[%clk 0:01:06]}  Qg5 {[%clk 0:01:48]} 22. Rxe6 {[%clk 0:00:23]}  fxe6 {[%clk 0:01:47]} 23. Ne3 {[%clk 0:00:22]}  Nh4 {[%clk 0:01:45]} 24. Qd1 {[%clk 0:00:15]}  h5 {[%clk 0:01:40]} 25. h3 {[%clk 0:00:09]}  g6 {[%clk 0:01:33]} 26. Qa4 {[%clk 0:00:08]}  Qe7 {[%clk 0:01:26]} 27. Qc2 {[%clk 0:00:07]}  Kg7 {[%clk 0:01:22]} 28. Ne2 {[%clk 0:00:07]}  Qf7 {[%clk 0:01:01]} 29. Nxf4 {[%clk 0:00:07]}  Qxf4 {[%clk 0:01:02]} 30. Qe2 {[%clk 0:00:07]}  Qe4 {[%clk 0:00:59]} 31. f3 {[%clk 0:00:04]}  Qb1+ {[%clk 0:00:56]} 32. Nf1 {[%clk 0:00:04]}  Qf5 {[%clk 0:00:46]} 33. Kf2 {[%clk 0:00:04]}  g5 {[%clk 0:00:45]} 34. Ng3 {[%clk 0:00:05]}  Qf7 {[%clk 0:00:44]} 35. Qe5+ {[%clk 0:00:05]}  Kh6 {[%clk 0:00:42]} 36. Qh8+ {[%clk 0:00:05]}  Qh7 {[%clk 0:00:42]} 37. Qf6+ {[%clk 0:00:04]}  Qg6 {[%clk 0:00:40]} 38. Qh8+ {[%clk 0:00:05]}  Qh7 {[%clk 0:00:40]} 39. Qxh7+ {[%clk 0:00:06]}  Kxh7 {[%clk 0:00:40]} 40. Nxh5 {[%clk 0:00:07]}  Kg6 {[%clk 0:00:38]} 41. Ng3 {[%clk 0:00:08]}  Kf6 {[%clk 0:00:38]} 42. Ke3 {[%clk 0:00:08]}  Nxg2+ {[%clk 0:00:37]} 43. Kf2 {[%clk 0:00:08]}  Nf4 {[%clk 0:00:38]} 44. Ne2 {[%clk 0:00:05]}  e5 {[%clk 0:00:27]} 45. dxe5+ {[%clk 0:00:05]}  Kxe5 {[%clk 0:00:28]} 46. Nxf4 {[%clk 0:00:05]}  Kxf4 {[%clk 0:00:29]} 47. Kg2 {[%clk 0:00:05]}  c5 {[%clk 0:00:29]} 48. Kf2 {[%clk 0:00:05]}  d4 {[%clk 0:00:29]} 49. cxd4 {[%clk 0:00:06]}  cxd4 {[%clk 0:00:30]} 50. Ke2 {[%clk 0:00:05]}  Kg3 {[%clk 0:00:30]} 0-1


[Site "https://www.chess.com"]

[Event "Titled Tuesday Blitz June 27 Early 2023"]
[White "Kilic, Eray"]
[Black "NicolaiMaxime"]
[WhiteFideId "44517173"]
[WhiteElo "2765"]
[BlackElo "2562"]
[Result "1-0"]
[Round "2"]
[TimeControl "180+2"]
[Date "2023.06.27"]
[WhiteClock "0:01:38"]
[BlackClock "0:00:16"]
[Board "77"]

1. d4 {[%clk 0:03:00]}  Nf6 {[%clk 0:02:59]} 2. Nc3 {[%clk 0:02:59]}  e6 {[%clk 0:02:57]} 3. e4 {[%clk 0:02:59]}  Bb4 {[%clk 0:02:57]} 4. e5 {[%clk 0:02:59]}  Nd5 {[%clk 0:02:52]} 5. Bd2 {[%clk 0:02:56]}  Nxc3 {[%clk 0:02:51]} 6. bxc3 {[%clk 0:02:57]}  Be7 {[%clk 0:02:49]} 7. Qg4 {[%clk 0:02:56]}  g6 {[%clk 0:02:48]} 8. Nf3 {[%clk 0:02:56]}  h5 {[%clk 0:02:47]} 9. Qf4 {[%clk 0:02:56]}  b6 {[%clk 0:02:43]} 10. h4 {[%clk 0:02:54]}  Bb7 {[%clk 0:02:41]} 11. Ng5 {[%clk 0:02:53]}  Bxg5 {[%clk 0:02:40]} 12. hxg5 {[%clk 0:02:54]}  Qe7 {[%clk 0:02:34]} 13. Rh3 {[%clk 0:02:44]}  Nc6 {[%clk 0:02:24]} 14. a4 {[%clk 0:02:43]}  a5 {[%clk 0:02:22]} 15. Bc1 {[%clk 0:02:42]}  O-O-O {[%clk 0:01:51]} 16. Ba3 {[%clk 0:02:39]}  d6 {[%clk 0:01:51]} 17. exd6 {[%clk 0:02:30]}  cxd6 {[%clk 0:01:50]} 18. Re3 {[%clk 0:02:31]}  Qd7 {[%clk 0:01:45]} 19. Rb1 {[%clk 0:02:26]}  Qc7 {[%clk 0:01:44]} 20. Qf6 {[%clk 0:02:21]}  Rhf8 {[%clk 0:01:42]} 21. c4 {[%clk 0:02:13]}  Ne7 {[%clk 0:01:40]} 22. Reb3 {[%clk 0:02:08]}  Kd7 {[%clk 0:00:57]} 23. Rxb6 {[%clk 0:02:06]}  Bc6 {[%clk 0:00:57]} 24. c5 {[%clk 0:01:58]}  Nd5 {[%clk 0:00:57]} 25. cxd6 {[%clk 0:01:58]}  Qxb6 {[%clk 0:00:51]} 26. Rxb6 {[%clk 0:01:58]}  Nxf6 {[%clk 0:00:51]} 27. gxf6 {[%clk 0:01:58]}  Rb8 {[%clk 0:00:51]} 28. Ra6 {[%clk 0:01:55]}  Rb1+ {[%clk 0:00:49]} 29. Ke2 {[%clk 0:01:56]}  Ra8 {[%clk 0:00:44]} 30. Rxa8 {[%clk 0:01:52]}  Bxa8 {[%clk 0:00:44]} 31. f3 {[%clk 0:01:49]}  Bc6 {[%clk 0:00:44]} 32. Kf2 {[%clk 0:01:49]}  Bxa4 {[%clk 0:00:44]} 33. Bd3 {[%clk 0:01:50]}  Bc6 {[%clk 0:00:38]} 34. Ke3 {[%clk 0:01:48]}  a4 {[%clk 0:00:37]} 35. Kf4 {[%clk 0:01:47]}  Rd1 {[%clk 0:00:25]} 36. Bxg6 {[%clk 0:01:42]}  Rxd4+ {[%clk 0:00:21]} 37. Ke3 {[%clk 0:01:42]}  Rd5 {[%clk 0:00:18]} 38. Bxf7 {[%clk 0:01:41]}  Rf5 {[%clk 0:00:19]} 39. Bb2 {[%clk 0:01:39]}  Kxd6 {[%clk 0:00:19]} 40. Bg6 {[%clk 0:01:38]}  Ra5 {[%clk 0:00:19]} 41. Ba3+ {[%clk 0:01:38]}  Ke5 {[%clk 0:00:17]} 42. f7 {[%clk 0:01:39]}  Ra8 {[%clk 0:00:17]} 43. f8=Q {[%clk 0:01:37]}  Rxf8 {[%clk 0:00:18]} 44. Bxf8 {[%clk 0:01:38]}  h4 {[%clk 0:00:16]} 45. Be7 {[%clk 0:01:38]}  Bd5 {[%clk 0:00:16]} 46. f4# {[%clk 0:01:38]} 1-0


[Site "https://www.chess.com"]

[Event "Titled Tuesday Blitz June 27 Early 2023"]
[White "Hayrapetyan, Hovik"]
[Black "Yaksin, Oleg"]
[WhiteFideId "13302639"]
[BlackFideId "24105880"]
[WhiteElo "2760"]
[BlackElo "2560"]
[Result "1-0"]
[Round "2"]
[TimeControl "180+2"]
[Date "2023.06.27"]
[WhiteClock "0:00:21"]
[BlackClock "0:00:13"]
[Board "79"]

1. d4 {[%clk 0:03:00]}  Nf6 {[%clk 0:02:59]} 2. c4 {[%clk 0:03:01]}  e6 {[%clk 0:02:59]} 3. Nc3 {[%clk 0:03:01]}  Bb4 {[%clk 0:02:59]} 4. Nf3 {[%clk 0:03:02]}  O-O {[%clk 0:02:59]} 5. Bg5 {[%clk 0:03:02]}  c5 {[%clk 0:02:56]} 6. Rc1 {[%clk 0:03:01]}  h6 {[%clk 0:02:51]} 7. Bh4 {[%clk 0:03:01]}  d6 {[%clk 0:02:34]} 8. e3 {[%clk 0:02:57]}  Nc6 {[%clk 0:02:34]} 9. Bd3 {[%clk 0:02:53]}  e5 {[%clk 0:02:34]} 10. O-O {[%clk 0:02:43]}  Bxc3 {[%clk 0:02:23]} 11. bxc3 {[%clk 0:02:44]}  g5 {[%clk 0:02:12]} 12. Nxg5 {[%clk 0:02:44]}  hxg5 {[%clk 0:02:13]} 13. Bxg5 {[%clk 0:02:45]}  Kg7 {[%clk 0:01:58]} 14. f4 {[%clk 0:02:41]}  e4 {[%clk 0:01:56]} 15. Bxe4 {[%clk 0:02:41]}  Qe7 {[%clk 0:01:56]} 16. Qf3 {[%clk 0:02:35]}  Re8 {[%clk 0:01:47]} 17. Bxc6 {[%clk 0:02:03]}  bxc6 {[%clk 0:01:46]} 18. Rce1 {[%clk 0:01:57]}  Bf5 {[%clk 0:01:36]} 19. e4 {[%clk 0:01:21]}  Bxe4 {[%clk 0:01:28]} 20. Qg3 {[%clk 0:01:19]}  Nh5 {[%clk 0:00:28]} 21. Qh4 {[%clk 0:01:17]}  f6 {[%clk 0:00:26]} 22. Qxh5 {[%clk 0:01:16]}  fxg5 {[%clk 0:00:27]} 23. fxg5 {[%clk 0:01:17]}  Rf8 {[%clk 0:00:23]} 24. Rf6 {[%clk 0:00:42]}  Rae8 {[%clk 0:00:22]} 25. Rxe4 {[%clk 0:00:26]}  Qxe4 {[%clk 0:00:23]} 26. Qh6+ {[%clk 0:00:27]}  Kg8 {[%clk 0:00:23]} 27. Rg6+ {[%clk 0:00:27]}  Qxg6 {[%clk 0:00:23]} 28. Qxg6+ {[%clk 0:00:28]}  Kh8 {[%clk 0:00:23]} 29. h4 {[%clk 0:00:28]}  cxd4 {[%clk 0:00:22]} 30. cxd4 {[%clk 0:00:27]}  d5 {[%clk 0:00:21]} 31. Qh6+ {[%clk 0:00:24]}  Kg8 {[%clk 0:00:20]} 32. Qxc6 {[%clk 0:00:24]}  dxc4 {[%clk 0:00:20]} 33. Qxc4+ {[%clk 0:00:25]}  Kg7 {[%clk 0:00:20]} 34. Qa6 {[%clk 0:00:21]}  Re4 {[%clk 0:00:13]} 35. Qb7+ {[%clk 0:00:21]} 1-0


[Site "https://www.chess.com"]

[Event "Titled Tuesday Blitz June 27 Early 2023"]
[White "Panesar Vedant"]
[Black "Tikhonov, Viacheslav"]
[WhiteFideId "35033018"]
[BlackFideId "44196407"]
[WhiteElo "2750"]
[BlackElo "2559"]
[Result "1-0"]
[Round "2"]
[TimeControl "180+2"]
[Date "2023.06.27"]
[WhiteClock "0:00:28"]
[BlackClock "0:00:16"]
[Board "80"]

1. e4 {[%clk 0:02:59]}  c5 {[%clk 0:02:58]} 2. Nf3 {[%clk 0:02:59]}  Nc6 {[%clk 0:02:56]} 3. Bd3 {[%clk 0:02:59]}  g6 {[%clk 0:02:54]} 4. O-O {[%clk 0:02:59]}  Bg7 {[%clk 0:02:53]} 5. c3 {[%clk 0:02:59]}  d5 {[%clk 0:02:47]} 6. Re1 {[%clk 0:02:47]}  dxe4 {[%clk 0:02:42]} 7. Bxe4 {[%clk 0:02:48]}  Nf6 {[%clk 0:02:43]} 8. Bxc6+ {[%clk 0:02:48]}  bxc6 {[%clk 0:02:44]} 9. Ne5 {[%clk 0:02:43]}  Qd6 {[%clk 0:02:28]} 10. Na3 {[%clk 0:02:35]}  O-O {[%clk 0:02:26]} 11. Nac4 {[%clk 0:02:35]}  Qd5 {[%clk 0:02:22]} 12. d3 {[%clk 0:02:22]}  Ba6 {[%clk 0:02:18]} 13. Qf3 {[%clk 0:01:53]}  Rac8 {[%clk 0:01:52]} 14. Bg5 {[%clk 0:01:48]}  Rfd8 {[%clk 0:01:47]} 15. Rad1 {[%clk 0:01:36]}  Rc7 {[%clk 0:01:38]} 16. h3 {[%clk 0:01:14]}  Bb7 {[%clk 0:01:14]} 17. Bf4 {[%clk 0:01:10]}  Rcc8 {[%clk 0:01:13]} 18. Bh2 {[%clk 0:00:58]}  Ba6 {[%clk 0:01:11]} 19. Na5 {[%clk 0:00:45]}  Qxa2 {[%clk 0:00:51]} 20. Naxc6 {[%clk 0:00:39]}  Re8 {[%clk 0:00:45]} 21. Ra1 {[%clk 0:00:36]}  Qxb2 {[%clk 0:00:40]} 22. Rxa6 {[%clk 0:00:36]}  Qxc3 {[%clk 0:00:40]} 23. Rd1 {[%clk 0:00:28]}  e6 {[%clk 0:00:35]} 24. Rxa7 {[%clk 0:00:28]}  Ra8 {[%clk 0:00:20]} 25. Rxa8 {[%clk 0:00:26]}  Rxa8 {[%clk 0:00:19]} 26. Ne7+ {[%clk 0:00:27]}  Kf8 {[%clk 0:00:16]} 27. Qxa8+ {[%clk 0:00:28]}  Kxe7 {[%clk 0:00:17]} 28. Qb7+ {[%clk 0:00:28]}  Kf8 {[%clk 0:00:16]} 29. Qxf7# {[%clk 0:00:28]} 1-0


[Site "https://www.chess.com"]

[Event "Titled Tuesday Blitz June 27 Early 2023"]
[White "Fonseca Manrique, Enrique"]
[Black "Kislinsky, Alexey"]
[WhiteFideId "5114330"]
[BlackFideId "14108801"]
[WhiteElo "2558"]
[BlackElo "2749"]
[Result "0-1"]
[Round "2"]
[TimeControl "180+2"]
[Date "2023.06.27"]
[WhiteClock "0:01:15"]
[BlackClock "0:01:25"]
[Board "81"]

1. e4 {[%clk 0:03:00]}  c5 {[%clk 0:02:58]} 2. Nf3 {[%clk 0:03:00]}  Nc6 {[%clk 0:02:58]} 3. Bb5 {[%clk 0:03:00]}  Nf6 {[%clk 0:02:56]} 4. d3 {[%clk 0:02:56]}  Qa5+ {[%clk 0:02:54]} 5. Nc3 {[%clk 0:02:55]}  Nd4 {[%clk 0:02:50]} 6. Bc4 {[%clk 0:02:48]}  b5 {[%clk 0:02:49]} 7. Bb3 {[%clk 0:02:48]}  Nxb3 {[%clk 0:02:49]} 8. cxb3 {[%clk 0:02:49]}  Bb7 {[%clk 0:02:43]} 9. O-O {[%clk 0:02:48]}  e6 {[%clk 0:02:35]} 10. Bf4 {[%clk 0:02:41]}  Be7 {[%clk 0:02:32]} 11. a4 {[%clk 0:02:40]}  b4 {[%clk 0:02:30]} 12. Nb5 {[%clk 0:02:37]}  O-O {[%clk 0:02:26]} 13. Bd6 {[%clk 0:02:18]}  Qd8 {[%clk 0:02:20]} 14. Nd2 {[%clk 0:02:15]}  a6 {[%clk 0:02:17]} 15. Bxe7 {[%clk 0:02:07]}  Qxe7 {[%clk 0:02:16]} 16. e5 {[%clk 0:02:00]}  axb5 {[%clk 0:02:15]} 17. exf6 {[%clk 0:02:00]}  Qxf6 {[%clk 0:02:15]} 18. axb5 {[%clk 0:02:01]}  Qxb2 {[%clk 0:02:13]} 19. Rc1 {[%clk 0:01:46]}  d6 {[%clk 0:01:57]} 20. Rc2 {[%clk 0:01:33]}  Qd4 {[%clk 0:01:47]} 21. Nc4 {[%clk 0:01:33]}  f5 {[%clk 0:01:36]} 22. Qe2 {[%clk 0:01:28]}  Rae8 {[%clk 0:01:26]} 23. Ra1 {[%clk 0:01:15]}  Qxa1+ {[%clk 0:01:25]} 0-1


[Site "https://www.chess.com"]

[Event "Titled Tuesday Blitz June 27 Early 2023"]
[White "Xu, Yi"]
[Black "Krutko, Anatoly"]
[WhiteFideId "8605564"]
[BlackFideId "4185862"]
[WhiteElo "2747"]
[BlackElo "2556"]
[Result "1/2-1/2"]
[Round "2"]
[TimeControl "180+2"]
[Date "2023.06.27"]
[WhiteClock "0:00:05"]
[BlackClock "0:00:07"]
[Board "82"]

1. e4 {[%clk 0:03:00]}  g6 {[%clk 0:02:58]} 2. d4 {[%clk 0:03:00]}  Bg7 {[%clk 0:02:52]} 3. Nc3 {[%clk 0:02:58]}  a6 {[%clk 0:02:53]} 4. f4 {[%clk 0:02:57]}  b5 {[%clk 0:02:51]} 5. Nf3 {[%clk 0:02:56]}  d6 {[%clk 0:02:50]} 6. Bd3 {[%clk 0:02:55]}  Nd7 {[%clk 0:02:46]} 7. e5 {[%clk 0:02:53]}  Nh6 {[%clk 0:02:45]} 8. Ne4 {[%clk 0:02:43]}  Nb6 {[%clk 0:02:36]} 9. O-O {[%clk 0:02:33]}  O-O {[%clk 0:02:35]} 10. c3 {[%clk 0:02:33]}  Nd5 {[%clk 0:02:24]} 11. a4 {[%clk 0:02:23]}  bxa4 {[%clk 0:02:22]} 12. Rxa4 {[%clk 0:02:18]}  c5 {[%clk 0:01:54]} 13. dxc5 {[%clk 0:02:07]}  dxc5 {[%clk 0:01:52]} 14. Qe2 {[%clk 0:01:54]}  Nb6 {[%clk 0:01:41]} 15. Ra3 {[%clk 0:01:42]}  c4 {[%clk 0:01:41]} 16. Bxc4 {[%clk 0:01:38]}  Nxc4 {[%clk 0:01:41]} 17. Qxc4 {[%clk 0:01:38]}  Nf5 {[%clk 0:01:35]} 18. Nc5 {[%clk 0:01:22]}  Qb6 {[%clk 0:01:08]} 19. Qb4 {[%clk 0:01:17]}  Qc6 {[%clk 0:01:06]} 20. Nd4 {[%clk 0:01:11]}  Nxd4 {[%clk 0:01:06]} 21. Qxd4 {[%clk 0:01:12]}  f6 {[%clk 0:01:01]} 22. Qc4+ {[%clk 0:01:01]}  Kh8 {[%clk 0:01:00]} 23. exf6 {[%clk 0:00:55]}  Rxf6 {[%clk 0:00:57]} 24. Be3 {[%clk 0:00:55]}  e5 {[%clk 0:00:53]} 25. fxe5 {[%clk 0:00:51]}  Rxf1+ {[%clk 0:00:52]} 26. Qxf1 {[%clk 0:00:51]}  Bf5 {[%clk 0:00:47]} 27. Rxa6 {[%clk 0:00:49]}  Rxa6 {[%clk 0:00:39]} 28. Qxa6 {[%clk 0:00:49]}  Qd5 {[%clk 0:00:39]} 29. Qd6 {[%clk 0:00:26]}  Qa8 {[%clk 0:00:29]} 30. Qd1 {[%clk 0:00:20]}  h5 {[%clk 0:00:24]} 31. e6 {[%clk 0:00:20]}  Kh7 {[%clk 0:00:23]} 32. e7 {[%clk 0:00:19]}  h4 {[%clk 0:00:18]} 33. h3 {[%clk 0:00:18]}  Qb8 {[%clk 0:00:12]} 34. b4 {[%clk 0:00:10]}  Qe5 {[%clk 0:00:08]} 35. Bd4 {[%clk 0:00:10]}  Qxe7 {[%clk 0:00:09]} 36. Bxg7 {[%clk 0:00:10]}  Qxg7 {[%clk 0:00:10]} 37. Qd4 {[%clk 0:00:10]}  Qh6 {[%clk 0:00:10]} 38. Kh2 {[%clk 0:00:10]}  Qg5 {[%clk 0:00:09]} 39. Qe5 {[%clk 0:00:07]}  Qd2 {[%clk 0:00:09]} 40. b5 {[%clk 0:00:06]}  Qb2 {[%clk 0:00:07]} 41. Qe7+ {[%clk 0:00:05]}  Kg8 {[%clk 0:00:06]} 42. Qd8+ {[%clk 0:00:05]}  Kh7 {[%clk 0:00:07]} 43. Qxh4+ {[%clk 0:00:05]}  Kg8 {[%clk 0:00:07]} 44. Qb4 {[%clk 0:00:05]}  Qe2 {[%clk 0:00:05]} 45. b6 {[%clk 0:00:05]}  Qe5+ {[%clk 0:00:06]} 46. Kh1 {[%clk 0:00:05]}  Qe1+ {[%clk 0:00:06]} 47. Kh2 {[%clk 0:00:05]}  Qe5+ {[%clk 0:00:07]} 48. g3 {[%clk 0:00:03]}  Qe2+ {[%clk 0:00:07]} 49. Kg1 {[%clk 0:00:04]}  Qe1+ {[%clk 0:00:07]} 50. Kg2 {[%clk 0:00:04]}  Qe2+ {[%clk 0:00:07]} 51. Kg1 {[%clk 0:00:04]}  Qe1+ {[%clk 0:00:08]} 52. Kg2 {[%clk 0:00:05]}  Qe2+ {[%clk 0:00:07]} 53. Kg1 {[%clk 0:00:05]} 1/2-1/2


[Site "https://www.chess.com"]